bitfinex/quotes_BTCUSD_20260307
["timestamp","ask_amount","ask_price","bid_price","bid_amount"]
[1772875006813,0.00148,68049.0,68041.0,0.02879182]
[1772875007015,0.01567227,68058.0,68041.0,0.02879182]
[1772875007016,0.07347135,68054.0,68041.0,0.02879182]
[1772875007335,0.00148,68053.0,68042.0,0.02879182]
[1772875007691,0.07347055,68055.0,68042.0,0.02879182]
[1772875007892,0.01567227,68053.0,68039.0,0.07348726]
[1772875008668,0.01567227,68051.0,68039.0,0.07348726]
[1772875009280,0.01567227,68060.0,68041.0,0.01448418]
[1772875009485,0.01567227,68058.0,68043.0,0.043276]
[1772875009786,0.01567227,68058.0,68043.0,0.02879182]
[1772875009920,0.01567227,68056.0,68039.0,0.10227908]
[1772875010321,0.01567227,68056.0,68039.0,0.07348726]
[1772875010566,0.07346998,68055.0,68041.0,0.0734851]
[1772875010757,0.01567227,68054.0,68041.0,0.0734851]
[1772875011320,0.01567227,68054.0,68042.0,0.02879182]
[1772875013948,0.01567227,68052.0,68039.0,0.07496726]
[1772875014579,0.01567227,68050.0,68039.0,0.07496726]
[1772875014768,0.01567227,68050.0,68038.0,0.07368829]
[1772875015946,0.01567227,68050.0,68038.0,0.0002]
[1772875015947,0.01567227,68048.0,68038.0,0.0002]
[1772875016369,0.01567227,68048.0,68038.0,0.02899182]
[1772875016930,0.00148,68047.0,68038.0,0.02899182]
[1772875017787,0.00148,68047.0,68038.0,0.0002]
[1772875017996,0.01567227,68045.0,68038.0,0.0002]
[1772875018595,0.01567227,68045.0,68037.0,0.00031487]
[1772875018890,0.01715227,68045.0,68037.0,0.00031487]
[1772875019322,0.01567227,68045.0,68037.0,0.00031487]
[1772875019522,0.1341365,68044.0,68037.0,0.00031487]
[1772875019852,0.08806099,68052.0,68037.0,0.08882875]
[1772875020072,0.07347322,68053.0,68041.0,0.01502476]
[1772875020288,0.07347322,68053.0,68042.0,0.02846896]
[1772875020289,0.00148,68052.0,68042.0,0.02846896]
[1772875020526,0.07347322,68053.0,68042.0,0.02846896]
[1772875020748,0.00148,68052.0,68042.0,0.02846896]
[1772875021148,0.00148,68051.0,68042.0,0.02846896]
[1772875021996,0.0749546,68051.0,68042.0,0.02846896]
[1772875022216,0.0749546,68051.0,68034.0,0.0002573]
[1772875022370,0.02790716,68050.0,68034.0,0.0002573]
[1772875022571,0.07506952,68051.0,68034.0,0.0002573]
[1772875022572,0.01458695,68047.0,68034.0,0.0002573]
[1772875023116,0.01458695,68046.0,68034.0,0.0002573]
[1772875023292,0.01458695,68044.0,68034.0,0.0002573]
[1772875024177,0.07348294,68043.0,68034.0,0.0002573]
[1772875024416,0.01458695,68042.0,68034.0,0.0002573]
[1772875026397,0.01606695,68041.0,68034.0,0.0002573]
[1772875026623,0.01606695,68041.0,68030.0,0.0002]
[1772875026624,0.01458695,68040.0,68030.0,0.0002]
[1772875027353,0.01458695,68040.0,68034.0,0.0002]
[1772875027554,0.01458695,68038.0,68024.0,0.00575]
[1772875028073,0.01458695,68038.0,68027.0,0.0002]
[1772875028285,0.00148,68037.0,68028.0,0.02797484]
[1772875028482,0.00148,68036.0,68029.0,0.02797484]
[1772875028681,0.01599004,68035.0,68027.0,0.0002]
[1772875028881,0.01599004,68035.0,68024.0,0.00575]
[1772875029674,0.01565066,68035.0,68024.0,0.00575]
[1772875030300,0.01599004,68033.0,68024.0,0.00575]
[1772875030510,0.00148,68032.0,68024.0,0.00575]
[1772875030774,0.01599004,68031.0,68023.0,0.0002]
[1772875031715,0.01599004,68031.0,68023.0,0.0003799]
[1772875032342,0.01599004,68029.0,68023.0,0.0003799]
[1772875033475,0.01605194,68029.0,68023.0,0.0003799]
[1772875034258,0.01605194,68029.0,68020.0,0.0002]
[1772875034259,0.07349914,68028.0,68020.0,0.0002]
[1772875034392,0.01599004,68027.0,68020.0,0.0002]
[1772875034594,0.01599004,68025.0,68014.0,0.0002]
[1772875035657,0.01599004,68025.0,68014.0,0.10168903]
[1772875036266,0.07350346,68024.0,68014.0,0.02817484]
[1772875036598,0.01599004,68023.0,68014.0,0.0002]
[1772875037444,0.01583535,68023.0,68014.0,0.0002]
[1772875038679,0.07349478,68033.0,68014.0,0.0002]
[1772875038932,0.07348726,68039.0,68016.0,0.01618906]
[1772875039186,0.01599004,68034.0,68017.0,0.02797484]
[1772875039564,0.01599004,68034.0,68018.0,0.01618906]
[1772875039725,0.01599004,68034.0,68019.0,0.01618906]
[1772875041744,0.08948273,68034.0,68020.0,0.07350779]
[1772875041988,0.08948273,68034.0,68020.0,0.08969685]
[1772875042941,0.07349269,68034.0,68020.0,0.08969685]
[1772875043191,0.01599004,68033.0,68020.0,0.08969685]
[1772875043391,0.00148,68032.0,68020.0,0.08969685]
[1772875045417,0.00148,68032.0,68020.0,0.07350779]
[1772875045740,0.00148,68032.0,68020.0,0.08969685]
[1772875053919,0.08948388,68033.0,68020.0,0.08969685]
[1772875054118,0.00148,68031.0,68020.0,0.08969685]
[1772875054752,0.00148,68031.0,68021.0,0.01618906]
[1772875055990,0.00148,68030.0,68022.0,0.07350563]
[1772875056668,0.00148,68030.0,68022.0,0.08969469]
[1772875057032,0.07371271,68034.0,68022.0,0.08969469]
[1772875057238,0.00148,68033.0,68022.0,0.08969469]
[1772875057880,0.00148,68032.0,68022.0,0.08969469]
[1772875058318,0.00148,68032.0,68020.0,0.07350779]
[1772875060659,0.00148,68032.0,68020.0,0.08822039]
[1772875062094,0.00148,68031.0,68020.0,0.08822039]
[1772875062333,0.00022001,68034.0,68020.0,0.0147126]
[1772875062508,0.00148,68031.0,68022.0,0.0147126]
[1772875062713,0.00148,68031.0,68024.0,0.0147126]
[1772875065198,0.00148,68031.0,68024.0,0.08821538]
[1772875069591,0.00148,68031.0,68024.0,0.07350278]
[1772875070742,0.00170001,68031.0,68024.0,0.07350278]
[1772875072203,0.00148,68031.0,68024.0,0.07350278]
[1772875072552,0.01507994,68037.0,68024.0,0.07350278]
[1772875072727,0.00148,68032.0,68024.0,0.07350278]
[1772875074641,0.01,68040.0,68024.0,0.07350278]
[1772875074862,0.00148,68039.0,68024.0,0.07350278]
[1772875075154,0.01,68040.0,68024.0,0.07350278]
[1772875075519,0.00148,68039.0,68027.0,0.04238527]
[1772875076357,0.01,68040.0,68024.0,0.07350278]
[1772875076506,0.00148,68039.0,68026.0,0.0147126]
[1772875076708,0.00148,68039.0,68030.0,0.04238527]
[1772875077107,0.00148,68039.0,68029.0,0.07349806]
[1772875077517,0.01,68040.0,68029.0,0.07349806]
[1772875077720,0.00148,68039.0,68029.0,0.07349806]
[1772875078497,0.00148,68039.0,68027.0,0.07349806]
[1772875079297,0.00148,68039.0,68027.0,0.08838807]
[1772875080748,0.00148,68038.0,68027.0,0.08838807]
[1772875081183,0.01,68040.0,68027.0,0.08838807]
[1772875081390,0.00148,68037.0,68027.0,0.08838807]
[1772875081993,0.00148,68037.0,68027.0,0.07349806]
[1772875085334,0.00148,68037.0,68023.0,0.07350454]
[1772875085526,0.00148,68037.0,68020.0,0.07370762]
[1772875085527,0.01428113,68032.0,68020.0,0.07370762]
[1772875085729,0.02661506,68034.0,68020.0,0.07370762]
[1772875085730,0.01428113,68030.0,68020.0,0.07370762]
[1772875087091,0.00148,68031.0,68020.0,0.07370762]
[1772875087637,0.00148,68030.0,68022.0,0.01489001]
[1772875087988,0.07348834,68039.0,68022.0,0.04190022]
[1772875087989,0.00148,68029.0,68022.0,0.04190022]
[1772875088218,0.00148,68028.0,68022.0,0.04190022]
[1772875088452,0.01489961,68037.0,68022.0,0.04190022]
[1772875088625,0.00148,68036.0,68022.0,0.04190022]
[1772875089171,0.01637961,68036.0,68022.0,0.04190022]
[1772875090600,0.01637961,68036.0,68023.0,0.07350454]
[1772875090796,0.01637961,68036.0,68023.0,0.11575919]
[1772875092429,0.08839016,68036.0,68023.0,0.11575919]
[1772875092596,0.00148,68035.0,68023.0,0.11575919]
[1772875093638,0.08839016,68036.0,68023.0,0.11595919]
[1772875093839,0.00148,68035.0,68023.0,0.11595919]
[1772875099043,0.074972,68035.0,68023.0,0.11595919]
[1772875100036,0.01489961,68036.0,68023.0,0.11595919]
[1772875100236,0.00148,68034.0,68023.0,0.11595919]
[1772875104034,0.00148,68033.0,68026.0,0.01524444]
[1772875104387,0.00022001,68035.0,68026.0,0.01524444]
[1772875104586,0.00022001,68035.0,68023.0,0.07370454]
[1772875104587,0.00148,68034.0,68024.0,0.02701021]
[1772875104940,0.00148,68034.0,68026.0,0.04225465]
[1772875105289,0.00022001,68037.0,68028.0,0.04225465]
[1772875105691,0.00148,68036.0,68028.0,0.04225465]
[1772875107238,0.00148,68036.0,68028.0,0.11575299]
[1772875108516,0.00148,68036.0,68028.0,0.07349834]
[1772875110972,0.00148,68036.0,68025.0,0.07350022]
[1772875111175,0.00148,68036.0,68025.0,0.08874466]
[1772875111587,0.00170001,68036.0,68025.0,0.11575487]
[1772875115091,0.01489961,68034.0,68023.0,0.0002]
[1772875115477,0.07208662,68033.0,68020.0,0.0002]
[1772875115677,0.01489961,68028.0,68014.0,0.0002]
[1772875115851,0.02494174,68025.0,68014.0,0.0002]
[1772875116051,0.01489961,68024.0,68014.0,0.0002]
[1772875116281,0.02494174,68023.0,68002.0,0.0002]
[1772875116484,0.02494174,68023.0,67986.0,0.01544444]
[1772875116485,0.01489961,68008.0,67987.0,0.07502329]
[1772875116658,0.42430392,68020.0,67993.0,1.53e-05]
[1772875116659,0.01489961,68002.0,67993.0,1.53e-05]
[1772875116856,0.01489961,68000.0,67993.0,1.53e-05]
[1772875117058,0.07353049,67999.0,67993.0,1.53e-05]
[1772875117260,0.0884301,67999.0,67993.0,1.53e-05]
[1772875117883,0.08852575,67999.0,67993.0,1.53e-05]
[1772875118249,0.01499526,67999.0,67986.0,0.07374455]
[1772875119098,0.07353157,67998.0,67986.0,0.07374455]
[1772875119708,0.01399408,67999.0,67986.0,0.07374455]
[1772875120109,0.01399408,67999.0,67986.0,0.0002]
[1772875120110,0.07362708,67999.0,67986.0,0.0002]
[1772875120311,0.01389843,67998.0,67986.0,0.0002]
[1772875120745,0.01389843,67998.0,67985.0,0.02723007]
[1772875121594,0.07353256,67998.0,67984.0,0.07354671]
[1772875121872,0.01389843,67997.0,67984.0,0.07354671]
[1772875122428,0.01389843,67997.0,67982.0,0.07354806]
[1772875123064,0.01389843,67997.0,67982.0,0.11167364]
[1772875124210,0.07353373,67996.0,67982.0,0.11167364]
[1772875124419,0.00148,67995.0,67982.0,0.11167364]
[1772875124604,0.00148,67995.0,67980.0,0.03812558]
[1772875124943,0.00148,67994.0,67980.0,0.03812558]
[1772875125312,0.00148,67994.0,67976.0,0.07355212]
[1772875125313,0.01389843,67989.0,67975.0,0.07395619]
[1772875125469,0.01389843,67988.0,67975.0,0.07395619]
[1772875125674,0.01389843,67986.0,67975.0,0.07395619]
[1772875126710,0.01389843,67986.0,67982.0,0.0002]
[1772875127438,0.01389843,67986.0,67975.0,0.07415619]
[1772875128356,0.01389843,67986.0,67975.0,0.0006]
[1772875128703,0.07354563,67985.0,67975.0,0.0006]
[1772875128913,0.01389843,67984.0,67975.0,0.0006]
[1772875129738,0.01389843,67984.0,67975.0,0.0741562]
[1772875132566,0.00148,67984.0,67975.0,0.0741562]
[1772875132737,0.00148,67985.0,67975.0,0.0741562]
[1772875132937,0.07353927,67991.0,67977.0,0.01417613]
[1772875133131,0.00148,67990.0,67977.0,0.03812558]
[1772875134811,0.00170001,67990.0,67977.0,0.03812558]
[1772875135016,0.0735413,67989.0,67978.0,0.0735532]
[1772875135377,0.0535413,67989.0,67978.0,0.0735532]
[1772875136354,0.07524057,67990.0,67978.0,0.0735532]
[1772875137308,0.00170001,67990.0,67978.0,0.0735532]
[1772875137660,0.08913895,67990.0,67978.0,0.0735532]
[1772875137812,0.01559844,67990.0,67978.0,0.0735532]
[1772875138209,0.08913884,67990.0,67978.0,0.0735532]
[1772875138451,0.00148,67989.0,67978.0,0.0735532]
[1772875138618,0.00148,67989.0,67978.0,0.11167878]
[1772875139289,0.00022001,67990.0,67978.0,0.11167878]
[1772875139422,0.00148,67988.0,67978.0,0.11167878]
[1772875141128,0.00148,67988.0,67978.0,0.0735532]
[1772875142768,0.00022001,67990.0,67978.0,0.0735532]
[1772875142965,0.00148,67989.0,67978.0,0.0735532]
[1772875145127,0.00022001,67990.0,67978.0,0.0735532]
[1772875145352,0.00148,67989.0,67978.0,0.0735532]
[1772875148062,0.00170001,67989.0,67978.0,0.0735532]
[1772875149783,0.00148,67988.0,67978.0,0.0735532]
[1772875154535,0.00022001,67996.0,67978.0,0.0735532]
[1772875154730,0.0001078,67998.0,67980.0,0.01384138]
[1772875154928,0.0001078,67998.0,67978.0,0.0735532]
[1772875154929,0.0001078,67998.0,67983.0,0.01384138]
[1772875155131,0.00022001,67995.0,67986.0,0.07354455]
[1772875155750,0.00022001,67995.0,67987.0,0.01384138]
[1772875156792,0.0001078,67998.0,67987.0,0.0233332]
[1772875156994,0.0001078,67998.0,67988.0,0.01384138]
[1772875157504,0.0001078,67998.0,67990.0,0.01384138]
[1772875158189,0.00037001,68002.0,67992.0,0.0233332]
[1772875158390,0.00037001,68002.0,67994.0,0.01384138]
[1772875159393,0.00037001,68002.0,67995.0,0.07353481]
[1772875161332,0.00037001,68002.0,67994.0,0.08737673]
[1772875161526,0.00037001,68002.0,67994.0,0.01384138]
[1772875161734,0.00037001,68002.0,67994.0,0.08737726]
[1772875163289,0.00037001,68002.0,67994.0,0.09737726]
[1772875164786,0.00037001,68002.0,67994.0,0.09737676]
[1772875169744,0.00148,68001.0,67994.0,0.09737676]
[1772875172352,0.00148,68001.0,67994.0,0.0971379]
[1772875174860,0.00148,68001.0,67994.0,0.02360252]
[1772875175086,0.00148,68001.0,67992.0,0.07391939]
[1772875176339,0.00170001,68001.0,67992.0,0.07391939]
[1772875176831,0.00170001,68001.0,67992.0,0.07383977]
[1772875177787,0.00170001,68001.0,67992.0,0.07246134]
[1772875178242,0.02367548,67998.0,67987.0,0.07374315]
[1772875178443,0.01302424,67997.0,67987.0,0.07385822]
[1772875179967,0.01302424,67997.0,67987.0,0.07385824]
[1772875180988,0.08655694,67997.0,67987.0,0.07385737]
[1772875181134,0.01302424,67997.0,67987.0,0.07385737]
[1772875181536,0.08655744,67997.0,67987.0,0.00031498]
[1772875181748,0.01302424,67995.0,67985.0,0.07354497]
[1772875181963,0.00148,67994.0,67985.0,0.07364062]
[1772875182724,0.00148,67994.0,67985.0,9.565e-05]
[1772875182918,0.07501674,67994.0,67985.0,9.565e-05]
[1772875183492,0.07501674,67994.0,67980.0,0.07375042]
[1772875183493,0.02367548,67993.0,67980.0,0.07375042]
[1772875183680,0.01302424,67991.0,67980.0,0.07386545]
[1772875183880,0.02367548,67992.0,67980.0,0.07386545]
[1772875184124,0.07501674,67994.0,67980.0,0.07386545]
[1772875184582,0.08804098,67994.0,67980.0,0.07386545]
[1772875185013,0.07501674,67994.0,67985.0,0.0002]
[1772875185207,0.01302424,67993.0,67985.0,0.00012036]
[1772875185417,0.01302424,67992.0,67985.0,0.00012036]
[1772875186392,0.01302424,67990.0,67980.0,0.00031503]
[1772875186612,0.01302424,67989.0,67980.0,0.00031503]
[1772875186829,0.00148,67988.0,67978.0,0.073753]
[1772875187031,0.00148,67988.0,67978.0,0.0002]
[1772875187032,0.08810404,67988.0,67978.0,0.0002]
[1772875188134,0.0750798,67988.0,67978.0,0.0002]
[1772875188346,0.01302424,67987.0,67978.0,0.0002]
[1772875188851,0.01302424,67987.0,67972.0,0.07355903]
[1772875189064,0.01302424,67982.0,67971.0,0.07395966]
[1772875189260,0.00148,67981.0,67971.0,0.07395966]
[1772875189464,0.01450424,67981.0,67971.0,0.07395966]
[1772875191403,0.08805486,67981.0,67971.0,0.07395966]
[1772875191953,0.01450424,67981.0,67971.0,0.07395966]
[1772875192363,0.00148,67981.0,67971.0,0.07395966]
[1772875192613,0.00148,67981.0,67970.0,0.07931078]
[1772875192614,0.00148,67980.0,67970.0,0.00575]
[1772875192936,0.01302424,67979.0,67968.0,0.00035]
[1772875193295,0.0735532,67978.0,67968.0,0.00035]
[1772875194334,0.0735532,67978.0,67964.0,0.0002]
[1772875194555,0.01302424,67973.0,67964.0,0.0002]
[1772875194762,0.00148,67972.0,67964.0,0.0002]
[1772875195321,0.07504077,67972.0,67964.0,0.0002]
[1772875195721,0.00148,67971.0,67964.0,0.0002]
[1772875196442,0.00148,67970.0,67964.0,0.0002]
[1772875198828,0.00148,67970.0,67947.0,0.0825927]
[1772875198829,0.02320038,67967.0,67947.0,0.0825927]
[1772875199040,0.00768,67943.0,67936.0,0.07359829]
[1772875199214,0.04718891,67960.0,67935.0,0.07359878]
[1772875199450,0.0134064,67958.0,67937.0,0.02232743]
[1772875199657,0.0134064,67954.0,67936.0,0.01369733]
[1772875199859,0.04718891,67960.0,67936.0,0.00148]
[1772875199991,0.0134064,67957.0,67936.0,0.00186391]
[1772875200191,0.0134064,67955.0,67936.0,0.00186391]
[1772875200400,0.0134064,67954.0,67938.0,0.07359651]
[1772875200617,0.0134064,67954.0,67939.0,0.01221733]
[1772875200794,0.0134064,67956.0,67939.0,0.01221733]
[1772875200999,0.00148,67961.0,67941.0,0.02232743]
[1772875201365,0.0793127,67970.0,67947.0,0.01221733]
[1772875201519,0.00148,67964.0,67950.0,0.02232743]
[1772875201698,0.00148,67964.0,67938.0,0.07359651]
[1772875201699,0.00148,67964.0,67953.0,0.01221733]
[1772875201921,0.00148,67964.0,67955.0,0.01221733]
[1772875202119,0.00148,67964.0,67956.0,0.01221733]
[1772875202547,0.00575,67970.0,67957.0,0.07357593]
[1772875202825,0.00148,67969.0,67957.0,0.07357593]
[1772875203302,0.0134064,67972.0,67957.0,0.07357593]
[1772875203303,0.0004,67975.0,67957.0,0.07357593]
[1772875203509,0.001744,67974.0,67962.0,0.01221733]
[1772875203707,0.001744,67974.0,67965.0,0.02127918]
[1772875203708,0.000264,67974.0,67965.0,0.02127918]
[1772875203855,0.000264,67974.0,67965.0,0.03356424]
[1772875204725,0.000264,67974.0,67966.0,0.07356619]
[1772875206038,0.07355019,67981.0,67968.0,0.02127918]
[1772875206039,0.0013877,67977.0,67968.0,0.02127918]
[1772875206249,0.0013877,67977.0,67969.0,0.03349651]
[1772875207708,0.07354859,67983.0,67970.0,0.07356186]
[1772875207883,0.00148,67977.0,67970.0,0.07356186]
[1772875208060,0.00148,67981.0,67970.0,0.07356186]
[1772875208277,0.00148,67981.0,67972.0,0.01238158]
[1772875208584,0.00148,67981.0,67972.0,0.03366076]
[1772875208960,0.07354686,67984.0,67972.0,0.03366076]
[1772875209164,0.0739098,67985.0,67972.0,0.03366076]
[1772875209165,0.00148,67983.0,67972.0,0.03366076]
[1772875209543,0.0003635,67985.0,67972.0,0.03366076]
[1772875209757,0.01246583,67983.0,67973.0,0.07355861]
[1772875209951,0.01246583,67983.0,67969.0,0.07356221]
[1772875210158,0.01246583,67980.0,67969.0,0.07356221]
[1772875210359,0.01246583,67979.0,67969.0,0.07356221]
[1772875210560,0.04718891,67980.0,67969.0,0.07356221]
[1772875210561,0.01394583,67978.0,67969.0,0.07356221]
[1772875212012,0.01394583,67978.0,67972.0,0.0002]
[1772875212765,0.08749915,67978.0,67972.0,0.0002]
[1772875213401,0.07503332,67978.0,67968.0,0.07356335]
[1772875213624,0.01246583,67977.0,67968.0,0.07356335]
[1772875214026,0.01246583,67977.0,67966.0,0.07356545]
[1772875214440,0.08602034,67977.0,67966.0,0.07356545]
[1772875215653,0.01246583,67977.0,67966.0,0.07356545]
[1772875216494,0.08602014,67977.0,67966.0,0.07356545]
[1772875217298,0.07503332,67978.0,67966.0,0.07356545]
[1772875218582,0.00148,67977.0,67966.0,0.07356545]
[1772875218987,0.00170001,67977.0,67966.0,0.07356545]
[1772875222463,0.00148,67976.0,67967.0,0.01238158]
[1772875222636,0.00022001,67977.0,67967.0,0.01238158]
[1772875222976,0.00022001,67977.0,67967.0,0.03366076]
[1772875224106,0.07377537,67977.0,67966.0,0.07356545]
[1772875224334,0.01246583,67976.0,67966.0,0.07356545]
[1772875224578,0.07377537,67977.0,67966.0,0.07356545]
[1772875224998,0.00022001,67977.0,67966.0,0.07356545]
[1772875225743,0.00170001,67977.0,67967.0,0.03366076]
[1772875226334,0.07354996,67981.0,67966.0,0.07356545]
[1772875226533,0.07354964,67982.0,67966.0,0.07356545]
[1772875226534,0.07503116,67980.0,67966.0,0.07356545]
[1772875226960,0.07503116,67980.0,67967.0,0.03366076]
[1772875227172,0.00148,67979.0,67967.0,0.03366076]
[1772875227566,0.00022001,67977.0,67967.0,0.03366076]
[1772875228211,0.00022001,67977.0,67966.0,0.07376545]
[1772875228442,0.01268584,67977.0,67966.0,0.07376545]
[1772875229806,0.00022001,67977.0,67966.0,0.07376545]
[1772875230006,0.00022001,67977.0,67966.0,0.08614703]
[1772875230232,0.00022001,67977.0,67966.0,0.07376545]
[1772875230505,0.00022001,67977.0,67968.0,0.01238158]
[1772875230966,0.00022001,67977.0,67969.0,0.07356294]
[1772875241530,0.00022001,67977.0,67969.0,0.07376294]
[1772875241836,0.07377444,67977.0,67969.0,0.0002]
[1772875243546,0.08652254,67977.0,67969.0,0.0002]
[1772875244981,0.00148,67976.0,67969.0,0.0002]
[1772875245954,0.00248,67976.0,67969.0,0.0002]
[1772875246363,0.001,67976.0,67969.0,0.0002]
[1772875246575,0.00148,67975.0,67969.0,0.0002]
[1772875249195,0.00248,67975.0,67969.0,0.0002]
[1772875253451,0.00148,67975.0,67969.0,0.0002]
[1772875258408,0.07503692,67975.0,67969.0,0.0002]
[1772875259805,0.02134289,67973.0,67950.0,0.0004]
[1772875260006,0.01261572,67959.0,67951.0,0.07358237]
[1772875260254,0.01261572,67959.0,67948.0,0.07358529]
[1772875260255,0.01421068,67959.0,67948.0,0.07358529]
[1772875260405,0.01421068,67959.0,67947.0,0.00148]
[1772875260406,0.01421068,67959.0,67947.0,0.07358676]
[1772875260598,0.01421068,67959.0,67946.0,0.07358757]
[1772875260969,0.01261572,67954.0,67944.0,0.07380335]
[1772875261193,0.02134289,67955.0,67943.0,0.00575]
[1772875261194,0.01261572,67952.0,67943.0,0.00575]
[1772875261407,0.07358243,67951.0,67943.0,0.00575]
[1772875262175,0.08619722,67952.0,67943.0,0.07934074]
[1772875262838,0.00148,67951.0,67943.0,0.07934074]
[1772875263782,0.07506258,67951.0,67943.0,0.07934074]
[1772875264238,0.00148,67951.0,67943.0,0.07934074]
[1772875264804,0.07368933,67959.0,67943.0,0.07934074]
[1772875265007,0.00148,67958.0,67944.0,0.02067426]
[1772875265209,0.00148,67958.0,67947.0,0.01282721]
[1772875266204,0.00148,67957.0,67948.0,0.07358568]
[1772875266410,0.07368888,67959.0,67948.0,0.07358568]
[1772875266634,0.00148,67958.0,67948.0,0.07358568]
[1772875268225,0.07357593,67957.0,67945.0,0.07358884]
[1772875268421,0.08597354,67957.0,67945.0,0.07358884]
[1772875269460,0.00148,67956.0,67947.0,0.0002]
[1772875270621,0.00148,67956.0,67947.0,0.07378676]
[1772875270927,0.00148,67956.0,67947.0,0.0205525]
[1772875271721,0.07505706,67956.0,67947.0,0.0205525]
[1772875272627,0.07357593,67958.0,67947.0,0.0205525]
[1772875272784,0.07357593,67958.0,67947.0,0.03311967]
[1772875272979,0.00148,67957.0,67947.0,0.03311967]
[1772875273222,0.07357593,67958.0,67947.0,0.0205525]
[1772875273423,0.00148,67956.0,67948.0,0.01256717]
[1772875274062,0.00148,67956.0,67946.0,0.07358676]
[1772875274266,0.04870607,67956.0,67943.0,0.00575]
[1772875274536,0.05962368,67953.0,67943.0,0.00575]
[1772875274684,0.07358135,67952.0,67943.0,0.00575]
[1772875275298,0.07358135,67952.0,67943.0,0.07934068]
[1772875276877,0.07358135,67952.0,67943.0,0.07954068]
[1772875277160,0.01239761,67951.0,67943.0,0.00595]
[1772875278144,0.00148,67950.0,67943.0,0.00595]
[1772875278937,0.0735846,67949.0,67943.0,0.00595]
[1772875279664,0.0735846,67949.0,67941.0,0.07359318]
[1772875279870,0.01239761,67948.0,67940.0,0.05180273]
[1772875280217,0.01239761,67948.0,67939.0,0.07359543]
[1772875280791,0.01239761,67948.0,67938.0,0.0735958]
[1772875281317,0.07358676,67947.0,67937.0,0.000175]
[1772875281500,0.08598437,67947.0,67937.0,0.000175]
[1772875281878,0.07358676,67947.0,67937.0,0.000175]
[1772875282080,0.01239761,67946.0,67937.0,0.000175]
[1772875282311,0.02015822,67946.0,67933.0,0.07380128]
[1772875282573,0.04722607,67943.0,67933.0,0.07380128]
[1772875282843,0.00148,67942.0,67933.0,0.07380128]
[1772875283890,0.07359326,67941.0,67933.0,0.0002]
[1772875284716,0.07507326,67942.0,67933.0,0.0002]
[1772875289466,0.07507238,67942.0,67933.0,0.0002]
[1772875289714,0.07507238,67942.0,67933.0,0.03344143]
[1772875290450,0.07507238,67942.0,67934.0,0.07360084]
[1772875295491,0.07358541,67949.0,67938.0,0.01256717]
[1772875295668,0.07358541,67949.0,67939.0,0.02080008]
[1772875296024,0.00148,67948.0,67938.0,0.01256717]
[1772875296159,0.00148,67948.0,67935.0,0.02228008]
[1772875298167,0.07358676,67947.0,67936.0,0.07359868]
[1772875300424,0.07358676,67947.0,67937.0,0.01291599]
[1772875300959,0.07358676,67947.0,67938.0,0.01291599]
[1772875301379,0.14684043,67955.0,67938.0,0.01291599]
[1772875301583,0.07379707,67956.0,67936.0,0.07359868]
[1772875301584,0.00022001,67956.0,67942.0,0.01291599]
[1772875301774,0.00022001,67956.0,67945.0,0.02080008]
[1772875301775,0.07379725,67956.0,67945.0,0.02080008]
[1772875301969,0.07379725,67956.0,67946.0,0.01291599]
[1772875302211,0.00022001,67947.0,67946.0,0.08650383]
[1772875302448,0.00022001,67947.0,67946.0,0.10730391]
[1772875302657,0.00170001,67956.0,67946.0,0.10730391]
[1772875302658,0.00022001,67956.0,67947.0,0.01291599]
[1772875302778,0.00022001,67958.0,67950.0,0.02080008]
[1772875302974,0.00022001,67958.0,67946.0,0.07358784]
[1772875302975,0.00022001,67958.0,67951.0,0.03371607]
[1772875304273,0.00148,67965.0,67951.0,0.07358243]
[1772875304472,0.00022001,67966.0,67952.0,0.02080008]
[1772875304677,0.00022001,67966.0,67955.0,0.01291599]
[1772875304854,0.00022001,67966.0,67957.0,0.02080008]
[1772875305002,0.00022001,67966.0,67958.0,0.01291599]
[1772875305409,0.00575,67970.0,67959.0,0.01291599]
[1772875305410,0.08079196,67970.0,67959.0,0.01291599]
[1772875305806,0.08079196,67970.0,67951.0,0.07369739]
[1772875305807,0.01232329,67969.0,67954.0,0.00148]
[1772875306008,0.01232329,67969.0,67954.0,0.01439599]
[1772875306292,0.07356403,67968.0,67956.0,0.07357702]
[1772875306742,0.08079196,67970.0,67957.0,0.02080008]
[1772875306743,0.00723,67970.0,67957.0,0.02080008]
[1772875307065,0.00723,67970.0,67959.0,0.01291599]
[1772875308001,0.00575,67970.0,67959.0,0.01291599]
[1772875308203,0.07395718,67975.0,67961.0,0.01291599]
[1772875308402,0.00148,67973.0,67965.0,0.01291599]
[1772875309443,0.00148,67974.0,67965.0,0.01291599]
[1772875310077,0.07395677,67975.0,67965.0,0.01291599]
[1772875310276,0.00148,67974.0,67965.0,0.01291599]
[1772875310684,0.07503826,67974.0,67965.0,0.01291599]
[1772875310876,0.07503826,67974.0,67965.0,0.01283633]
[1772875311633,0.07503796,67974.0,67965.0,0.07356715]
[1772875311835,0.00022001,67970.0,67965.0,0.07356715]
[1772875312206,0.00022001,67970.0,67965.0,0.08648314]
[1772875314785,0.00022001,67970.0,67966.0,0.01291599]
[1772875314981,0.00022001,67970.0,67967.0,0.0864811]
[1772875315598,0.00022001,67970.0,67967.0,0.01291599]
[1772875315774,0.00022001,67970.0,67965.0,0.07356715]
[1772875317376,0.07378212,67970.0,67960.0,0.07505208]
[1772875317707,0.0598213,67970.0,67960.0,0.07505208]
[1772875318149,0.00022001,67970.0,67960.0,0.07505208]
[1772875318356,0.00170001,67970.0,67961.0,0.01291599]
[1772875322453,0.00170001,67970.0,67962.0,0.07357052]
[1772875322697,0.00170001,67970.0,67962.0,0.07349086]
[1772875323646,0.00170001,67970.0,67961.0,0.08640728]
[1772875323647,0.00170001,67970.0,67961.0,0.07357095]
[1772875324305,0.00170001,67970.0,67962.0,0.01251448]
[1772875324469,0.00170001,67970.0,67963.0,0.01251448]
[1772875324674,0.03363745,67990.0,67964.0,0.02045956]
[1772875324851,0.03363745,67990.0,67961.0,0.07357095]
[1772875324852,0.00148,67987.0,67967.0,0.01251448]
[1772875325051,0.00148,67987.0,67969.0,0.01251448]
[1772875325276,0.00148,67987.0,67971.0,0.01251448]
[1772875325476,0.01421025,67987.0,67971.0,0.01251448]
[1772875325695,0.01421025,67987.0,67972.0,0.0735597]
[1772875325696,0.07354455,67986.0,67972.0,0.0735597]
[1772875325886,0.07354455,67986.0,67972.0,0.08607418]
[1772875326823,0.07365963,67986.0,67972.0,0.08607418]
[1772875328487,0.07365963,67986.0,67972.0,0.08599453]
[1772875329682,0.0666193,67986.0,67972.0,0.08599453]
[1772875329881,0.0665271,67986.0,67972.0,0.08599453]
[1772875331015,0.06674711,67986.0,67972.0,0.07348005]
[1772875331260,0.00033509,67986.0,67973.0,0.01293623]
[1772875331671,0.00033509,67986.0,67973.0,0.01269724]